[Event "Titled Tuesday Blitz October 12 2021"]
[White "Indjic, Aleksandar"]
[Black "Yilmaz, Mustafa"]
[WhiteFideId "911925"]
[BlackFideId "6302718"]
[WhiteElo "2643"]
[BlackElo "2518"]
[Result "0-1"]
[Round "08"]
[TimeControl "180+1"]
[Date "2021.10.12"]
[WhiteClock "0:00:06"]
[BlackClock "0:00:05"]

1. d4 {[%clk 0:03:00]}  Nf6 {[%clk 0:03:00]} 2. Nf3 {[%clk 0:03:01]}  e6 {[%clk 0:02:58]} 3. Bg5 {[%clk 0:03:00]}  c5 {[%clk 0:02:53]} 4. e3 {[%clk 0:02:58]}  h6 {[%clk 0:02:51]} 5. Bh4 {[%clk 0:02:56]}  b6 {[%clk 0:02:38]} 6. Nbd2 {[%clk 0:02:55]}  Bb7 {[%clk 0:02:38]} 7. c3 {[%clk 0:02:54]}  Be7 {[%clk 0:02:37]} 8. Bd3 {[%clk 0:02:53]}  O-O {[%clk 0:02:36]} 9. Qe2 {[%clk 0:02:50]}  d5 {[%clk 0:02:32]} 10. Bxf6 {[%clk 0:02:44]}  Bxf6 {[%clk 0:02:32]} 11. h4 {[%clk 0:02:44]}  g6 {[%clk 0:02:23]} 12. Ne5 {[%clk 0:02:41]}  Nc6 {[%clk 0:02:18]} 13. f4 {[%clk 0:02:39]}  cxd4 {[%clk 0:02:14]} 14. exd4 {[%clk 0:02:38]}  Nxe5 {[%clk 0:02:11]} 15. fxe5 {[%clk 0:02:31]}  Bxh4+ {[%clk 0:02:11]} 16. Kd1 {[%clk 0:02:31]}  Kg7 {[%clk 0:02:09]} 17. Qg4 {[%clk 0:02:28]}  Bg5 {[%clk 0:02:08]} 18. Nf3 {[%clk 0:02:27]}  Bc6 {[%clk 0:02:01]} 19. Ke2 {[%clk 0:02:06]}  Rh8 {[%clk 0:01:49]} 20. Rh3 {[%clk 0:02:03]}  a5 {[%clk 0:01:42]} 21. Rah1 {[%clk 0:02:02]}  b5 {[%clk 0:01:35]} 22. a3 {[%clk 0:01:39]}  Be7 {[%clk 0:01:21]} 23. Qf4 {[%clk 0:01:33]}  h5 {[%clk 0:01:17]} 24. Qg3 {[%clk 0:00:43]}  Kf8 {[%clk 0:00:59]} 25. Rf1 {[%clk 0:00:34]}  Ke8 {[%clk 0:00:58]} 26. Nd2 {[%clk 0:00:33]}  Rf8 {[%clk 0:00:56]} 27. Qf2 {[%clk 0:00:32]}  Ra7 {[%clk 0:00:51]} 28. Rf3 {[%clk 0:00:32]}  Bh4 {[%clk 0:00:44]} 29. g3 {[%clk 0:00:31]}  Bg5 {[%clk 0:00:36]} 30. Bxg6 {[%clk 0:00:31]}  Qe7 {[%clk 0:00:25]} 31. Nb3 {[%clk 0:00:25]}  b4 {[%clk 0:00:23]} 32. Nc5 {[%clk 0:00:25]}  h4 {[%clk 0:00:19]} 33. Bd3 {[%clk 0:00:18]}  Ra8 {[%clk 0:00:14]} 34. gxh4 {[%clk 0:00:18]}  Bxh4 {[%clk 0:00:14]} 35. Qh2 {[%clk 0:00:17]}  bxc3 {[%clk 0:00:13]} 36. bxc3 {[%clk 0:00:18]}  Rb8 {[%clk 0:00:14]} 37. Rb1 {[%clk 0:00:18]}  Rxb1 {[%clk 0:00:14]} 38. Bxb1 {[%clk 0:00:19]}  Qg5 {[%clk 0:00:13]} 39. Nd3 {[%clk 0:00:14]}  Bb5 {[%clk 0:00:12]} 40. Kd1 {[%clk 0:00:13]}  Qg4 {[%clk 0:00:11]} 41. Qe2 {[%clk 0:00:13]}  Qg1+ {[%clk 0:00:10]} 42. Kc2 {[%clk 0:00:13]}  Bg5 {[%clk 0:00:10]} 43. Kb2 {[%clk 0:00:12]}  Ke7 {[%clk 0:00:08]} 44. Rf1 {[%clk 0:00:12]}  Qg3 {[%clk 0:00:06]} 45. Ka1 {[%clk 0:00:10]}  Rc8 {[%clk 0:00:05]} 46. Rf3 {[%clk 0:00:09]}  Qg1 {[%clk 0:00:05]} 47. Rf1 {[%clk 0:00:09]}  Qe3 {[%clk 0:00:04]} 48. Qh5 {[%clk 0:00:09]}  Rf8 {[%clk 0:00:02]} 49. Qf3 {[%clk 0:00:07]}  Qd2 {[%clk 0:00:03]} 50. Qg4 {[%clk 0:00:03]}  Qxc3+ {[%clk 0:00:03]} 51. Nb2 {[%clk 0:00:03]}  Bc1 {[%clk 0:00:03]} 52. Qh4+ {[%clk 0:00:03]}  Kd7 {[%clk 0:00:03]} 53. Qf2 {[%clk 0:00:02]}  Qxa3+ {[%clk 0:00:02]} 54. Ba2 {[%clk 0:00:03]}  Bxb2+ {[%clk 0:00:03]} 55. Kb1 {[%clk 0:00:04]}  Bd3+ {[%clk 0:00:03]} 56. Qc2 {[%clk 0:00:05]}  Bxc2+ {[%clk 0:00:04]} 57. Kxc2 {[%clk 0:00:06]}  Qc3+ {[%clk 0:00:05]} 58. Kb1 {[%clk 0:00:06]}  Qxd4 {[%clk 0:00:05]} 0-1


[Site "https://www.chess.com"]

[Event "Titled Tuesday Blitz October 12 2021"]
[White "Karttunen, Mika"]
[Black "Samsonkin, Artiom"]
[WhiteFideId "502081"]
[BlackFideId "13503111"]
[WhiteElo "2343"]
[BlackElo "2513"]
[Result "0-1"]
[Round "08"]
[TimeControl "180+1"]
[Date "2021.10.12"]
[WhiteClock "0:00:07"]
[BlackClock "0:00:08"]

1. d4 {[%clk 0:02:58]}  Nf6 {[%clk 0:03:00]} 2. c4 {[%clk 0:02:57]}  e6 {[%clk 0:03:00]} 3. g3 {[%clk 0:02:54]}  Bb4+ {[%clk 0:03:00]} 4. Bd2 {[%clk 0:02:52]}  Qe7 {[%clk 0:02:59]} 5. Bg2 {[%clk 0:02:48]}  Nc6 {[%clk 0:02:59]} 6. Nf3 {[%clk 0:02:40]}  Bxd2+ {[%clk 0:02:56]} 7. Nbxd2 {[%clk 0:02:39]}  d6 {[%clk 0:02:53]} 8. O-O {[%clk 0:02:22]}  O-O {[%clk 0:02:51]} 9. e3 {[%clk 0:02:20]}  e5 {[%clk 0:02:52]} 10. h3 {[%clk 0:02:14]}  Re8 {[%clk 0:02:45]} 11. Qc2 {[%clk 0:02:08]}  a5 {[%clk 0:02:42]} 12. b3 {[%clk 0:02:05]}  g6 {[%clk 0:02:25]} 13. a3 {[%clk 0:02:01]}  Bf5 {[%clk 0:02:22]} 14. Qc3 {[%clk 0:01:59]}  Ne4 {[%clk 0:02:05]} 15. Nxe4 {[%clk 0:01:50]}  Bxe4 {[%clk 0:02:06]} 16. d5 {[%clk 0:01:47]}  Nb8 {[%clk 0:02:04]} 17. Nd2 {[%clk 0:01:38]}  Bxg2 {[%clk 0:02:03]} 18. Kxg2 {[%clk 0:01:37]}  e4 {[%clk 0:01:55]} 19. b4 {[%clk 0:01:31]}  Nd7 {[%clk 0:01:53]} 20. Rfc1 {[%clk 0:00:54]}  b6 {[%clk 0:01:47]} 21. Qd4 {[%clk 0:00:44]}  h5 {[%clk 0:01:36]} 22. Nb1 {[%clk 0:00:24]}  axb4 {[%clk 0:01:31]} 23. axb4 {[%clk 0:00:23]}  Rxa1 {[%clk 0:01:31]} 24. Qxa1 {[%clk 0:00:22]}  Ne5 {[%clk 0:01:32]} 25. Nd2 {[%clk 0:00:17]}  h4 {[%clk 0:01:20]} 26. Nxe4 {[%clk 0:00:12]}  f5 {[%clk 0:01:16]} 27. Nd2 {[%clk 0:00:12]}  hxg3 {[%clk 0:01:16]} 28. Kxg3 {[%clk 0:00:12]}  Qg5+ {[%clk 0:01:03]} 29. Kh2 {[%clk 0:00:11]}  Qh4 {[%clk 0:01:04]} 30. Rg1 {[%clk 0:00:10]}  Ng4+ {[%clk 0:00:53]} 31. Rxg4 {[%clk 0:00:06]}  fxg4 {[%clk 0:00:54]} 32. Qf1 {[%clk 0:00:06]}  Rf8 {[%clk 0:00:52]} 33. Ne4 {[%clk 0:00:05]}  gxh3 {[%clk 0:00:48]} 34. Ng3 {[%clk 0:00:05]}  Qf6 {[%clk 0:00:46]} 35. f4 {[%clk 0:00:05]}  Qc3 {[%clk 0:00:41]} 36. Qxh3 {[%clk 0:00:04]}  Qxe3 {[%clk 0:00:39]} 37. Qg4 {[%clk 0:00:05]}  Kg7 {[%clk 0:00:30]} 38. f5 {[%clk 0:00:03]}  Qh6+ {[%clk 0:00:25]} 39. Kg2 {[%clk 0:00:03]}  Qd2+ {[%clk 0:00:25]} 40. Kg1 {[%clk 0:00:04]}  Qh6 {[%clk 0:00:15]} 41. c5 {[%clk 0:00:04]}  Ra8 {[%clk 0:00:14]} 42. cxd6 {[%clk 0:00:03]}  cxd6 {[%clk 0:00:13]} 43. f6+ {[%clk 0:00:03]}  Kxf6 {[%clk 0:00:11]} 44. Qd4+ {[%clk 0:00:04]}  Kf7 {[%clk 0:00:11]} 45. Qf2+ {[%clk 0:00:04]}  Kg8 {[%clk 0:00:11]} 46. Qxb6 {[%clk 0:00:04]}  Qd2 {[%clk 0:00:09]} 47. Nf1 {[%clk 0:00:02]}  Qg5+ {[%clk 0:00:09]} 48. Kf2 {[%clk 0:00:02]}  Rf8+ {[%clk 0:00:08]} 49. Ke2 {[%clk 0:00:02]}  Qg2+ {[%clk 0:00:08]} 50. Kd3 {[%clk 0:00:02]}  Qxf1+ {[%clk 0:00:08]} 51. Kc3 {[%clk 0:00:03]}  Qf3+ {[%clk 0:00:08]} 52. Kc4 {[%clk 0:00:03]}  Qf4+ {[%clk 0:00:09]} 53. Kb5 {[%clk 0:00:03]}  Qe5 {[%clk 0:00:09]} 54. Qc6 {[%clk 0:00:03]}  g5 {[%clk 0:00:08]} 55. Ka6 {[%clk 0:00:02]}  g4 {[%clk 0:00:08]} 56. b5 {[%clk 0:00:02]}  g3 {[%clk 0:00:09]} 57. Qd7 {[%clk 0:00:03]}  Rf7 {[%clk 0:00:07]} 58. Qg4+ {[%clk 0:00:03]}  Qg7 {[%clk 0:00:08]} 59. Qc8+ {[%clk 0:00:03]}  Kh7 {[%clk 0:00:08]} 60. Qh3+ {[%clk 0:00:03]}  Kg8 {[%clk 0:00:08]} 61. Qg2 {[%clk 0:00:03]}  Rf8 {[%clk 0:00:09]} 62. b6 {[%clk 0:00:03]}  Qc3 {[%clk 0:00:08]} 63. b7 {[%clk 0:00:03]}  Qc4+ {[%clk 0:00:07]} 64. Kb6 {[%clk 0:00:04]}  Qb4+ {[%clk 0:00:07]} 65. Kc6 {[%clk 0:00:04]}  Qf4 {[%clk 0:00:07]} 66. Kc7 {[%clk 0:00:04]}  Qf2 {[%clk 0:00:07]} 67. Qh3 {[%clk 0:00:04]}  Qc5+ {[%clk 0:00:08]} 68. Kd7 {[%clk 0:00:04]}  Rf7+ {[%clk 0:00:08]} 69. Ke6 {[%clk 0:00:04]}  Qe3+ {[%clk 0:00:07]} 70. Kxd6 {[%clk 0:00:03]}  Qf4+ {[%clk 0:00:07]} 71. Kc6 {[%clk 0:00:03]}  Qf6+ {[%clk 0:00:07]} 72. d6 {[%clk 0:00:04]}  Qc3+ {[%clk 0:00:06]} 73. Kd5 {[%clk 0:00:04]}  Qb3+ {[%clk 0:00:06]} 74. Kc6 {[%clk 0:00:04]}  Qxb7+ {[%clk 0:00:06]} 75. Kc5 {[%clk 0:00:05]}  Qa7+ {[%clk 0:00:06]} 76. Kc6 {[%clk 0:00:05]}  Qa6+ {[%clk 0:00:06]} 77. Kc5 {[%clk 0:00:05]}  Qa5+ {[%clk 0:00:06]} 78. Kc6 {[%clk 0:00:05]}  Qa4+ {[%clk 0:00:07]} 79. Kc5 {[%clk 0:00:06]}  Rf5+ {[%clk 0:00:07]} 80. Qxf5 {[%clk 0:00:05]}  Qa5+ {[%clk 0:00:07]} 81. Kc6 {[%clk 0:00:05]}  Qxf5 {[%clk 0:00:08]} 82. d7 {[%clk 0:00:06]}  Qxd7+ {[%clk 0:00:08]} 83. Kxd7 {[%clk 0:00:07]}  g2 {[%clk 0:00:08]} 0-1


[Site "https://www.chess.com"]

[Event "Titled Tuesday Blitz October 12 2021"]
[White "Khusnutdinov, Rustam"]
[Black "Warmerdam, Max"]
[WhiteFideId "13701703"]
[BlackFideId "1048104"]
[WhiteElo "2571"]
[BlackElo "2537"]
[Result "1-0"]
[Round "08"]
[TimeControl "180+1"]
[Date "2021.10.12"]
[WhiteClock "0:00:28"]
[BlackClock "0:00:56"]

1. e4 {[%clk 0:03:00]}  c5 {[%clk 0:02:56]} 2. Nf3 {[%clk 0:02:59]}  d6 {[%clk 0:02:54]} 3. Bb5+ {[%clk 0:02:59]}  Nd7 {[%clk 0:02:53]} 4. Ba4 {[%clk 0:02:58]}  Nf6 {[%clk 0:02:53]} 5. O-O {[%clk 0:02:58]}  e6 {[%clk 0:02:52]} 6. c4 {[%clk 0:02:58]}  a6 {[%clk 0:02:53]} 7. Nc3 {[%clk 0:02:58]}  Be7 {[%clk 0:02:53]} 8. d4 {[%clk 0:02:58]}  cxd4 {[%clk 0:02:53]} 9. Qxd4 {[%clk 0:02:59]}  Qc7 {[%clk 0:02:51]} 10. Rd1 {[%clk 0:02:58]}  O-O {[%clk 0:02:51]} 11. Bxd7 {[%clk 0:02:58]}  Nxd7 {[%clk 0:02:51]} 12. Bg5 {[%clk 0:02:58]}  f6 {[%clk 0:02:48]} 13. Be3 {[%clk 0:02:57]}  Ne5 {[%clk 0:02:47]} 14. Nxe5 {[%clk 0:02:57]}  dxe5 {[%clk 0:02:42]} 15. Qb6 {[%clk 0:02:57]}  Qxb6 {[%clk 0:02:29]} 16. Bxb6 {[%clk 0:02:58]}  Kf7 {[%clk 0:02:23]} 17. Rd3 {[%clk 0:02:55]}  h5 {[%clk 0:02:20]} 18. Rad1 {[%clk 0:02:55]}  g5 {[%clk 0:02:20]} 19. Na4 {[%clk 0:02:51]}  Re8 {[%clk 0:02:20]} 20. c5 {[%clk 0:02:45]}  f5 {[%clk 0:02:17]} 21. f3 {[%clk 0:02:45]}  g4 {[%clk 0:02:17]} 22. Bc7 {[%clk 0:02:44]}  gxf3 {[%clk 0:02:13]} 23. gxf3 {[%clk 0:02:44]}  Rg8+ {[%clk 0:02:12]} 24. Kf1 {[%clk 0:02:42]}  b5 {[%clk 0:02:02]} 25. cxb6 {[%clk 0:02:40]}  Bb7 {[%clk 0:02:03]} 26. Rc1 {[%clk 0:01:17]}  fxe4 {[%clk 0:01:57]} 27. fxe4 {[%clk 0:00:56]}  Bxe4 {[%clk 0:01:58]} 28. Rg3 {[%clk 0:00:57]}  Bh4 {[%clk 0:01:50]} 29. Bxe5 {[%clk 0:00:54]}  Bxg3 {[%clk 0:01:47]} 30. hxg3 {[%clk 0:00:55]}  Rac8 {[%clk 0:01:37]} 31. Rc7+ {[%clk 0:00:54]}  Rxc7 {[%clk 0:01:34]} 32. bxc7 {[%clk 0:00:54]}  Bb7 {[%clk 0:01:34]} 33. Nc5 {[%clk 0:00:51]}  Bc8 {[%clk 0:01:34]} 34. b4 {[%clk 0:00:51]}  Rg5 {[%clk 0:01:32]} 35. Bf4 {[%clk 0:00:51]}  Rf5 {[%clk 0:01:20]} 36. Nd3 {[%clk 0:00:48]}  Kf6 {[%clk 0:01:17]} 37. Ke2 {[%clk 0:00:42]}  e5 {[%clk 0:01:18]} 38. Be3 {[%clk 0:00:42]}  Ke6 {[%clk 0:01:17]} 39. Bb6 {[%clk 0:00:39]}  Kd5 {[%clk 0:01:17]} 40. Ke3 {[%clk 0:00:38]}  Rf6 {[%clk 0:01:17]} 41. Ba5 {[%clk 0:00:38]}  Rg6 {[%clk 0:01:16]} 42. Kf2 {[%clk 0:00:37]}  Kd4 {[%clk 0:01:13]} 43. Nc5 {[%clk 0:00:31]}  e4 {[%clk 0:01:12]} 44. Nb3+ {[%clk 0:00:31]}  Kd3 {[%clk 0:01:11]} 45. Nc1+ {[%clk 0:00:32]}  Kc2 {[%clk 0:01:09]} 46. Ne2 {[%clk 0:00:32]}  Kd2 {[%clk 0:00:54]} 47. b5+ {[%clk 0:00:31]}  Kd3 {[%clk 0:00:55]} 48. Nf4+ {[%clk 0:00:30]}  Kd4 {[%clk 0:00:54]} 49. Nxg6 {[%clk 0:00:29]}  e3+ {[%clk 0:00:55]} 50. Ke1 {[%clk 0:00:29]}  axb5 {[%clk 0:00:56]} 51. Bb6+ {[%clk 0:00:29]}  Kd3 {[%clk 0:00:56]} 52. Nf4+ {[%clk 0:00:28]} 1-0


[Site "https://www.chess.com"]

[Event "Titled Tuesday Blitz October 12 2021"]
[White "Moroni, Luca Jr"]
[Black "Bluebaum, Matthias"]
[WhiteFideId "865834"]
[BlackFideId "24651516"]
[WhiteElo "2491"]
[BlackElo "2681"]
[Result "0-1"]
[Round "08"]
[TimeControl "180+1"]
[Date "2021.10.12"]
[WhiteClock "0:00:05"]
[BlackClock "0:00:11"]

1. d4 {[%clk 0:03:00]}  Nf6 {[%clk 0:02:57]} 2. c4 {[%clk 0:03:01]}  e6 {[%clk 0:02:58]} 3. Nc3 {[%clk 0:03:01]}  d5 {[%clk 0:02:56]} 4. cxd5 {[%clk 0:03:02]}  exd5 {[%clk 0:02:57]} 5. Bg5 {[%clk 0:03:02]}  c6 {[%clk 0:02:58]} 6. e3 {[%clk 0:03:03]}  h6 {[%clk 0:02:57]} 7. Bh4 {[%clk 0:03:03]}  Be7 {[%clk 0:02:52]} 8. Bd3 {[%clk 0:03:03]}  O-O {[%clk 0:02:52]} 9. Bg3 {[%clk 0:03:02]}  Re8 {[%clk 0:02:50]} 10. h3 {[%clk 0:03:02]}  Ne4 {[%clk 0:02:47]} 11. Nxe4 {[%clk 0:02:52]}  dxe4 {[%clk 0:02:47]} 12. Bc4 {[%clk 0:02:52]}  Be6 {[%clk 0:02:39]} 13. Bxe6 {[%clk 0:02:45]}  Bb4+ {[%clk 0:02:39]} 14. Kf1 {[%clk 0:02:45]}  Rxe6 {[%clk 0:02:39]} 15. Qb3 {[%clk 0:02:45]}  Bd6 {[%clk 0:02:26]} 16. Bxd6 {[%clk 0:02:30]}  Rxd6 {[%clk 0:02:27]} 17. Ne2 {[%clk 0:01:51]}  Qe7 {[%clk 0:02:25]} 18. Ng3 {[%clk 0:01:49]}  Rd5 {[%clk 0:02:21]} 19. Qc2 {[%clk 0:01:41]}  f5 {[%clk 0:02:20]} 20. Ne2 {[%clk 0:01:41]}  Nd7 {[%clk 0:01:58]} 21. Nf4 {[%clk 0:01:37]}  Rd6 {[%clk 0:01:58]} 22. g3 {[%clk 0:01:34]}  Nb6 {[%clk 0:01:52]} 23. b4 {[%clk 0:01:32]}  g5 {[%clk 0:01:47]} 24. Ne2 {[%clk 0:01:30]}  Nd5 {[%clk 0:01:48]} 25. Rb1 {[%clk 0:01:24]}  Rf8 {[%clk 0:01:47]} 26. Nc3 {[%clk 0:01:12]}  Nxc3 {[%clk 0:01:41]} 27. Qxc3 {[%clk 0:01:12]}  f4 {[%clk 0:01:42]} 28. gxf4 {[%clk 0:01:10]}  gxf4 {[%clk 0:01:43]} 29. exf4 {[%clk 0:01:10]}  Rdf6 {[%clk 0:01:39]} 30. Rg1+ {[%clk 0:01:07]}  Kh7 {[%clk 0:01:39]} 31. Rg4 {[%clk 0:01:01]}  Rxf4 {[%clk 0:01:39]} 32. Rxf4 {[%clk 0:01:02]}  Rxf4 {[%clk 0:01:39]} 33. Qg3 {[%clk 0:00:51]}  Qf7 {[%clk 0:01:25]} 34. Re1 {[%clk 0:00:47]}  Rf3 {[%clk 0:01:22]} 35. Qh4 {[%clk 0:00:36]}  e3 {[%clk 0:00:52]} 36. Re2 {[%clk 0:00:36]}  Qe6 {[%clk 0:00:30]} 37. Kg2 {[%clk 0:00:11]}  Qd5 {[%clk 0:00:29]} 38. Kg1 {[%clk 0:00:04]}  exf2+ {[%clk 0:00:12]} 39. Rxf2 {[%clk 0:00:05]}  Re3 {[%clk 0:00:13]} 40. Kh2 {[%clk 0:00:03]}  Qd6+ {[%clk 0:00:12]} 41. Qf4 {[%clk 0:00:02]}  Qxf4+ {[%clk 0:00:12]} 42. Rxf4 {[%clk 0:00:03]}  Re2+ {[%clk 0:00:13]} 43. Kg3 {[%clk 0:00:03]}  Kg6 {[%clk 0:00:14]} 44. Rf8 {[%clk 0:00:03]}  Rxa2 {[%clk 0:00:13]} 45. Rb8 {[%clk 0:00:03]}  b5 {[%clk 0:00:14]} 46. Rc8 {[%clk 0:00:04]}  Rc2 {[%clk 0:00:14]} 47. d5 {[%clk 0:00:03]}  Rc3+ {[%clk 0:00:15]} 48. Kg2 {[%clk 0:00:03]}  Kf5 {[%clk 0:00:12]} 49. dxc6 {[%clk 0:00:03]}  Ke6 {[%clk 0:00:13]} 50. Rh8 {[%clk 0:00:03]}  Kd6 {[%clk 0:00:10]} 51. Rxh6+ {[%clk 0:00:03]}  Kc7 {[%clk 0:00:10]} 52. h4 {[%clk 0:00:02]}  Rc4 {[%clk 0:00:11]} 53. h5 {[%clk 0:00:02]}  a6 {[%clk 0:00:11]} 54. Kg3 {[%clk 0:00:02]}  Rxb4 {[%clk 0:00:12]} 55. Rg6 {[%clk 0:00:02]}  Rb3+ {[%clk 0:00:13]} 56. Kg2 {[%clk 0:00:02]}  Rb2+ {[%clk 0:00:13]} 57. Kg3 {[%clk 0:00:02]}  Rb1 {[%clk 0:00:13]} 58. Kh2 {[%clk 0:00:02]}  Re1 {[%clk 0:00:10]} 59. h6 {[%clk 0:00:02]}  Re8 {[%clk 0:00:11]} 60. Rg7+ {[%clk 0:00:02]}  Kxc6 {[%clk 0:00:10]} 61. h7 {[%clk 0:00:03]}  Rh8 {[%clk 0:00:11]} 62. Kg3 {[%clk 0:00:03]}  b4 {[%clk 0:00:11]} 63. Kf3 {[%clk 0:00:04]}  b3 {[%clk 0:00:12]} 64. Ke3 {[%clk 0:00:03]}  b2 {[%clk 0:00:12]} 65. Rg1 {[%clk 0:00:01]}  Rxh7 {[%clk 0:00:13]} 66. Rb1 {[%clk 0:00:01]}  Rd7 {[%clk 0:00:05]} 67. Rxb2 {[%clk 0:00:01]}  a5 {[%clk 0:00:06]} 68. Rc2+ {[%clk 0:00:01]}  Kb5 {[%clk 0:00:06]} 69. Rb2+ {[%clk 0:00:02]}  Kc4 {[%clk 0:00:07]} 70. Rd2 {[%clk 0:00:02]}  Re7+ {[%clk 0:00:06]} 71. Kf2 {[%clk 0:00:02]}  a4 {[%clk 0:00:07]} 72. Rb2 {[%clk 0:00:02]}  a3 {[%clk 0:00:07]} 73. Rb8 {[%clk 0:00:02]}  Kc3 {[%clk 0:00:08]} 74. Rc8+ {[%clk 0:00:02]}  Kb2 {[%clk 0:00:08]} 75. Rb8+ {[%clk 0:00:03]}  Ka1 {[%clk 0:00:09]} 76. Ra8 {[%clk 0:00:03]}  a2 {[%clk 0:00:09]} 77. Rb8 {[%clk 0:00:03]}  Re5 {[%clk 0:00:09]} 78. Ra8 {[%clk 0:00:03]}  Kb2 {[%clk 0:00:08]} 79. Rb8+ {[%clk 0:00:03]}  Ka3 {[%clk 0:00:08]} 80. Ra8+ {[%clk 0:00:03]}  Kb3 {[%clk 0:00:09]} 81. Rb8+ {[%clk 0:00:04]}  Ka4 {[%clk 0:00:10]} 82. Ra8+ {[%clk 0:00:04]}  Ra5 {[%clk 0:00:10]} 83. Rxa5+ {[%clk 0:00:05]}  Kxa5 {[%clk 0:00:11]} 0-1


[Site "https://www.chess.com"]

[Event "Titled Tuesday Blitz October 12 2021"]
[White "Moskalenko, Alexander"]
[Black "Perez Ponsa, Federico"]
[WhiteFideId "4155351"]
[BlackFideId "117927"]
[WhiteElo "2515"]
[BlackElo "2672"]
[Result "0-1"]
[Round "08"]
[TimeControl "180+1"]
[Date "2021.10.12"]
[WhiteClock "0:01:29"]
[BlackClock "0:01:01"]

1. d4 {[%clk 0:03:00]}  Nf6 {[%clk 0:03:00]} 2. c4 {[%clk 0:03:01]}  e6 {[%clk 0:03:01]} 3. Nc3 {[%clk 0:03:00]}  Bb4 {[%clk 0:03:00]} 4. Qc2 {[%clk 0:02:57]}  d5 {[%clk 0:02:59]} 5. cxd5 {[%clk 0:02:56]}  exd5 {[%clk 0:03:00]} 6. Bg5 {[%clk 0:02:55]}  h6 {[%clk 0:02:58]} 7. Bxf6 {[%clk 0:02:50]}  Qxf6 {[%clk 0:02:59]} 8. a3 {[%clk 0:02:48]}  Bxc3+ {[%clk 0:02:56]} 9. Qxc3 {[%clk 0:02:49]}  O-O {[%clk 0:02:54]} 10. e3 {[%clk 0:02:49]}  Bf5 {[%clk 0:02:55]} 11. Nf3 {[%clk 0:02:49]}  Nd7 {[%clk 0:02:54]} 12. Be2 {[%clk 0:02:49]}  c5 {[%clk 0:02:54]} 13. O-O-O {[%clk 0:02:47]}  c4 {[%clk 0:02:51]} 14. Ne5 {[%clk 0:02:09]}  b5 {[%clk 0:02:24]} 15. g4 {[%clk 0:02:05]}  Be6 {[%clk 0:02:24]} 16. f4 {[%clk 0:02:06]}  Nb6 {[%clk 0:02:13]} 17. h4 {[%clk 0:01:57]}  Na4 {[%clk 0:02:08]} 18. Qc2 {[%clk 0:01:52]}  c3 {[%clk 0:02:05]} 19. b4 {[%clk 0:01:45]}  a5 {[%clk 0:02:01]} 20. g5 {[%clk 0:01:42]}  Qe7 {[%clk 0:01:18]} 21. gxh6 {[%clk 0:01:42]}  g6 {[%clk 0:01:15]} 22. Rdg1 {[%clk 0:01:39]}  axb4 {[%clk 0:01:11]} 23. h5 {[%clk 0:01:35]}  b3 {[%clk 0:01:03]} 24. Qxb3 {[%clk 0:01:34]}  Bf5 {[%clk 0:01:03]} 25. hxg6 {[%clk 0:01:33]}  fxg6 {[%clk 0:01:04]} 26. Nxg6 {[%clk 0:01:29]}  Qxe3+ {[%clk 0:01:01]} 0-1


[Site "https://www.chess.com"]

[Event "Titled Tuesday Blitz October 12 2021"]
[White "Nogerbek, Kazybek"]
[Black "Solon, Nathan"]
[WhiteFideId "13710427"]
[BlackFideId "2017229"]
[WhiteElo "2436"]
[BlackElo "2681"]
[Result "1-0"]
[Round "08"]
[TimeControl "180+1"]
[Date "2021.10.12"]
[WhiteClock "0:00:55"]
[BlackClock "0:00:34"]

1. d4 {[%clk 0:03:00]}  Nf6 {[%clk 0:02:59]} 2. c4 {[%clk 0:03:01]}  e6 {[%clk 0:02:59]} 3. Nc3 {[%clk 0:03:01]}  Bb4 {[%clk 0:02:59]} 4. Qc2 {[%clk 0:03:01]}  O-O {[%clk 0:02:59]} 5. a3 {[%clk 0:02:57]}  Bxc3+ {[%clk 0:02:58]} 6. Qxc3 {[%clk 0:02:58]}  d5 {[%clk 0:02:59]} 7. Nf3 {[%clk 0:02:57]}  dxc4 {[%clk 0:02:56]} 8. Qxc4 {[%clk 0:02:57]}  b6 {[%clk 0:02:55]} 9. Bf4 {[%clk 0:02:55]}  Ba6 {[%clk 0:02:44]} 10. Qxc7 {[%clk 0:02:54]}  Qd5 {[%clk 0:02:42]} 11. Qd6 {[%clk 0:02:49]}  Qe4 {[%clk 0:02:28]} 12. Rc1 {[%clk 0:02:38]}  Nbd7 {[%clk 0:02:22]} 13. e3 {[%clk 0:02:13]}  Bxf1 {[%clk 0:02:21]} 14. Rxf1 {[%clk 0:02:13]}  Rac8 {[%clk 0:02:17]} 15. Ke2 {[%clk 0:01:35]}  Rc2+ {[%clk 0:02:12]} 16. Nd2 {[%clk 0:01:34]}  Rxb2 {[%clk 0:02:06]} 17. Qc6 {[%clk 0:01:12]}  Nd5 {[%clk 0:02:01]} 18. Bd6 {[%clk 0:01:11]}  Rd8 {[%clk 0:01:48]} 19. Qxd7 {[%clk 0:01:07]}  Rf8 {[%clk 0:00:41]} 20. Rc8 {[%clk 0:01:00]}  Qg4+ {[%clk 0:00:34]} 21. Ke1 {[%clk 0:00:55]} 1-0


[Site "https://www.chess.com"]

[Event "Titled Tuesday Blitz October 12 2021"]
[White "Perez Gormaz, Matias"]
[Black "Tanenbaum, Zachary"]
[WhiteFideId "3406342"]
[BlackFideId "2060850"]
[WhiteElo "2352"]
[BlackElo "2165"]
[Result "1-0"]
[Round "08"]
[TimeControl "180+1"]
[Date "2021.10.12"]
[WhiteClock "0:01:45"]
[BlackClock "0:01:44"]

1. e4 {[%clk 0:03:00]}  e5 {[%clk 0:02:59]} 2. Nf3 {[%clk 0:03:01]}  Nc6 {[%clk 0:02:59]} 3. Bb5 {[%clk 0:03:02]}  a6 {[%clk 0:02:59]} 4. Ba4 {[%clk 0:03:02]}  d6 {[%clk 0:03:00]} 5. O-O {[%clk 0:03:02]}  Nf6 {[%clk 0:03:01]} 6. Re1 {[%clk 0:02:38]}  Be7 {[%clk 0:03:00]} 7. c3 {[%clk 0:02:36]}  O-O {[%clk 0:03:00]} 8. h3 {[%clk 0:02:35]}  b5 {[%clk 0:03:00]} 9. Bb3 {[%clk 0:02:34]}  Nb8 {[%clk 0:02:56]} 10. d4 {[%clk 0:02:33]}  Nbd7 {[%clk 0:02:56]} 11. c4 {[%clk 0:02:33]}  bxc4 {[%clk 0:02:48]} 12. Bxc4 {[%clk 0:02:33]}  Bb7 {[%clk 0:02:48]} 13. Nc3 {[%clk 0:02:33]}  Re8 {[%clk 0:02:35]} 14. Bxf7+ {[%clk 0:02:21]}  Kxf7 {[%clk 0:02:32]} 15. Qb3+ {[%clk 0:02:21]}  Kg6 {[%clk 0:02:09]} 16. Nh4+ {[%clk 0:01:52]}  Kh5 {[%clk 0:02:09]} 17. Qd1+ {[%clk 0:01:53]}  Kxh4 {[%clk 0:02:06]} 18. Kh2 {[%clk 0:01:48]}  Nxe4 {[%clk 0:01:46]} 19. Rxe4+ {[%clk 0:01:45]}  Bxe4 {[%clk 0:01:44]} 20. g3# {[%clk 0:01:45]} 1-0


[Site "https://www.chess.com"]